Workbook

Sheet Лист1
C1: Мкдоу дс "Колосок" | L1: Мкдоу дс "Колосок"
C2: II день ясли | L2: II день сад
C3: № рец | D3: Наименование блюда | F3: Химический состав | J3: Выход | L3: № рец | M3: Наименование блюдо | O3: Химический состав | S3: Выход
F4: Б | G4: Ж | H4: У | I4: К | O4: Б | P4: Ж | Q4: У | R4: К
C5: I завтрак | L5: I завтрак
C6: 161 | D6: Суп молочный с крупой | F6: 3.97 | G6: 4.11 | H6: 14.52 | I6: 110.95 | J6: 150 | L6: 161 | M6: Суп молочный с крупой | O6: 5.1 | P6: 4.56 | Q6: 19.68 | R6: 140.07 | S6: 200
C7: 1 | D7: Бутерброд с маслом | F7: 0.88 | G7: 3.26 | H7: 5.82 | I7: 56.12 | J7: 12/4 | L7: 1 | M7: Бутерброд с маслом | O7: 1.2 | P7: 3.4 | Q7: 7.7 | R7: 66 | S7: 16/4
C8: 692 | D8: Кофейный напиток | F8: 0.09 | G8: 0.003 | H8: 9.21 | I8: 37.24 | J8: 150 | L8: 692 | M8: Кофейный напиток | O8: 0.114 | P8: 0.004 | Q8: 11.45 | R8: 46.26 | S8: 200
D9: Хлеб в/с пщеничный | F9: 0.84 | G9: 0.36 | H9: 5.76 | I9: 29.64 | J9: 12 | M9: Хлеб в/с пщеничный | O9: 1.6 | P9: 0.48 | Q9: 6.88 | R9: 38.24 | S9: 16
C10: Итого за завтрак: | F10: =SUM(F6:F9) -> 5.78 | G10: =SUM(G6:G9) -> 7.733 | H10: 35.31 | I10: 233.95 | L10: Итого за завтрак: | O10: =SUM(O6:O9) -> 8.014 | P10: =SUM(P6:P9) -> 8.444 | Q10: 45.71 | R10: 290.57
C11: II завтрак | L11: II завтрак
C12: Обед | L12: Обед
C13: 120 | D13: Свекольник на к/ б со сметаной | F13: 5.18 | G13: 3.7 | H13: 16.06 | I13: 127.243 | J13: 150 | L13: 120 | M13: Свекольник на к/ б со сметаной | O13: 4.68 | P13: 7.45 | Q13: 15.54 | R13: 151.43 | S13: 200
C14: 490 | D14: Птица, тушеная с морковью | F14: 14.65 | G14: 2.63 | H14: 2.15 | I14: 90.85 | J14: 70 | L14: 490 | M14: Птица, тушеная с морковью | O14: 12.1 | P14: 14.5 | Q14: 2.8 | R14: 190.3 | S14: 90
C15: 203 | D15: Отварной картофель | F15: 2.55 | G15: 2.31 | H15: 24.86 | I15: 130.36 | J15: 100 | L15: 203 | M15: Отварной картофель | O15: 2.6 | P15: 2.6 | Q15: 25.6 | R15: 136.5 | S15: 130
C16: 639 | D16: Компот и сухофруктов | F16: 0.19 | G16: 0 | H16: 8.06 | I16: 32.22 | J16: 150 | L16: 639 | M16: Компот из сухофруктов | O16: 0.26 | P16: 0 | Q16: 10.39 | R16: 41.64 | S16: 200
D17: Хлеб белый | F17: 1.33 | G17: 0.57 | H17: 9.12 | I17: 46.93 | J17: 19 | M17: Хлеб белый | O17: 1.82 | P17: 0.78 | Q17: 12.48 | R17: 64.22 | S17: 26
D18: Хлеб ржаной | F18: 1.97 | G18: 0.38 | H18: 11.8 | I18: 58.49 | J18: 29 | M18: Хлеб ржаной | O18: 2.45 | P18: 0.47 | Q18: 14.65 | R18: 72.61 | S18: 36
C19: Итого за обед: | F19: =SUM(F13:F18) -> 25.87 | G19: =SUM(G13:G18) -> 9.59 | H19: 72.05 | I19: 486.093 | L19: Итого за обед: | O19: =SUM(O13:O18) -> 23.91 | P19: =SUM(P13:P18) -> 25.8 | Q19: 81.46 | R19: 656.7
C20: Полдник | L20: Полдник
C21: 315 | D21: Запеканка творожно - рисовая | F21: 9.72 | G21: 4.08 | H21: 8.952 | I21: 117.62 | J21: 60 | L21: 315 | M21: Запеканка творожно- рисовая | O21: 12.79 | P21: 5.62 | Q21: 14.756 | R21: 160.56 | S21: 100
C22: 600 | D22: Соус сметанный | F22: 0.75 | G22: 1.97 | H22: 4.27 | I22: 37.2 | J22: 20 | L22: 600 | M22: Соус сметанный | O22: 0.9 | P22: 3.1 | Q22: 4.4 | R22: 48.7 | S22: 30
C23: 648 | D23: Кисель | F23: 3.64 | G23: 4.2 | H23: 9.08 | I23: 88.58 | J23: 130 | L23: 648 | M23: Кисель | O23: 0.02 | P23: 0 | Q23: 22.36 | R23: 91.52 | S23: 150
D24: Хлеб пшеничный | F24: 1.6 | G24: 0.48 | H24: 6.88 | I24: 38.24 | J24: 16 | M24: Хлеб пшеничный | O24: 1.6 | P24: 0.48 | Q24: 6.88 | R24: 38.24 | S24: 16
C25: Итого за полдник: | F25: =SUM(F21:F24) -> 15.71 | G25: =SUM(G21:G24) -> 10.73 | H25: 29.182 | I25: 281.64 | L25: Итого за полдник: | O25: =SUM(O21:O24) -> 15.31 | P25: =SUM(P21:P24) -> 9.2 | Q25: 48.396 | R25: 339.02
C26: ИТОГО ЗА 2 ДЕНЬ: | F26: =SUM(F6:F10,F13:F19,F21:F25) -> 94.72 | G26: =SUM(G6:G10,G13:G19,G21:G25) -> 56.106 | H26: 273.084 | I26: 2003.366 | L26: ИТОГО ЗА 2 ДЕНЬ: | O26: =SUM(O6:O10,O13:O19,O21:O25) -> 94.468 | P26: =SUM(P6:P10,P13:P19,P21:P25) -> 86.888 | Q26: 351.132 | R26: 2572.58
